[Event "*** Titled Tuesday Blitz"]
[Site "Chess.com"]
[Date "2019.06.04"]
[Round "1"]
[White "LiamVrolijk"]
[Black "sergeikim"]
[Result "1/2-1/2"]
[WhiteElo "2746"]
[BlackElo "2406"]
[TimeControl "180+2"]
[EndTime "13:11:10 PDT"]
[Termination "Game drawn - insufficient material"]

1. Nf3 {[%clk 0:03:01.7]} 1... Nf6 {[%clk 0:02:59.5]} 2. c4 {[%clk 0:03:02.9]}
2... g6 {[%clk 0:03:00.5]} 3. Nc3 {[%clk 0:03:04]} 3... Bg7 {[%clk 0:03:01.4]}
4. d4 {[%clk 0:03:05.3]} 4... d6 {[%clk 0:03:02.3]} 5. g3 {[%clk 0:03:04.1]}
5... O-O {[%clk 0:03:01.8]} 6. Bg2 {[%clk 0:03:05.1]} 6... Nbd7 {[%clk
0:03:02.6]} 7. O-O {[%clk 0:03:06.3]} 7... e5 {[%clk 0:03:03.4]} 8. e4 {[%clk
0:03:07.4]} 8... exd4 {[%clk 0:03:04.2]} 9. Nxd4 {[%clk 0:03:09.3]} 9... Re8
{[%clk 0:03:05.2]} 10. Re1 {[%clk 0:03:08.9]} 10... Nc5 {[%clk 0:03:04.5]} 11.
h3 {[%clk 0:03:05.5]} 11... c6 {[%clk 0:03:04.5]} 12. Bf4 {[%clk 0:03:04.8]}
12... Nh5 {[%clk 0:03:00.6]} 13. Be3 {[%clk 0:03:05.9]} 13... a5 {[%clk
0:02:56.3]} 14. b3 {[%clk 0:03:02.4]} 14... Qb6 {[%clk 0:02:51.7]} 15. Nde2
{[%clk 0:02:57.3]} 15... Qc7 {[%clk 0:02:47.2]} 16. Rc1 {[%clk 0:02:57.7]} 16...
Nf6 {[%clk 0:02:41.4]} 17. Qc2 {[%clk 0:02:57.2]} 17... h6 {[%clk 0:02:35.7]}
18. Nd4 {[%clk 0:02:55.1]} 18... Nfd7 {[%clk 0:02:32.9]} 19. Rcd1 {[%clk
0:02:53.3]} 19... Ne5 {[%clk 0:02:32]} 20. f4 {[%clk 0:02:50.6]} 20... Ned7
{[%clk 0:02:32.3]} 21. Bf2 {[%clk 0:02:49.3]} 21... Nf8 {[%clk 0:02:30.7]} 22.
Nde2 {[%clk 0:02:42.7]} 22... b6 {[%clk 0:02:29.4]} 23. Qd2 {[%clk 0:02:41.7]}
23... Nb7 {[%clk 0:02:15.5]} 24. Kh2 {[%clk 0:02:33.4]} 24... Ne6 {[%clk
0:02:15.2]} 25. Na4 {[%clk 0:02:30.8]} 25... Nec5 {[%clk 0:02:15.5]} 26. Nec3
{[%clk 0:02:29.4]} 26... Be6 {[%clk 0:02:03]} 27. Nxc5 {[%clk 0:02:25.9]} 27...
Nxc5 {[%clk 0:01:59.5]} 28. Ne2 {[%clk 0:02:18.4]} 28... Rad8 {[%clk 0:01:58.2]}
29. Nd4 {[%clk 0:02:19.3]} 29... Bc8 {[%clk 0:01:57.7]} 30. Qc2 {[%clk
0:02:18.4]} 30... Bb7 {[%clk 0:01:54.4]} 31. a3 {[%clk 0:02:16.4]} 31... Ra8
{[%clk 0:01:48.5]} 32. b4 {[%clk 0:02:15.6]} 32... axb4 {[%clk 0:01:48.6]} 33.
axb4 {[%clk 0:02:17.5]} 33... Ne6 {[%clk 0:01:49.5]} 34. Nf3 {[%clk 0:02:13.3]}
34... Ra3 {[%clk 0:01:40.9]} 35. Qd2 {[%clk 0:02:12.9]} 35... Bf8 {[%clk
0:01:36.7]} 36. f5 {[%clk 0:02:12.6]} 36... Nd8 {[%clk 0:01:22.9]} 37. Bd4
{[%clk 0:02:09.7]} 37... c5 {[%clk 0:01:18.5]} 38. Bb2 {[%clk 0:02:05.8]} 38...
Ra2 {[%clk 0:01:18.4]} 39. Qc3 {[%clk 0:02:05.3]} 39... Rxb2 {[%clk 0:01:16]}
40. Qxb2 {[%clk 0:02:07.2]} 40... Nc6 {[%clk 0:01:16.5]} 41. bxc5 {[%clk
0:02:03.6]} 41... bxc5 {[%clk 0:01:16.7]} 42. e5 {[%clk 0:02:04.8]} 42... dxe5
{[%clk 0:01:12.3]} 43. fxg6 {[%clk 0:02:05.7]} 43... fxg6 {[%clk 0:01:12.4]} 44.
Nxe5 {[%clk 0:02:05.3]} 44... Bg7 {[%clk 0:01:08]} 45. Qb1 {[%clk 0:01:38.4]}
45... Rxe5 {[%clk 0:01:03.1]} 46. Qxg6 {[%clk 0:01:37.8]} 46... Nd4 {[%clk
0:00:51.1]} 47. Rxe5 {[%clk 0:01:36.7]} 47... Qxe5 {[%clk 0:00:48.5]} 48. Qd3
{[%clk 0:01:02.4]} 48... Bxg2 {[%clk 0:00:38.8]} 49. Kxg2 {[%clk 0:01:04.3]}
49... Qe2+ {[%clk 0:00:36.3]} 50. Qxe2 {[%clk 0:01:05.4]} 50... Nxe2 {[%clk
0:00:37.3]} 51. Rd5 {[%clk 0:01:06.3]} 51... Bd4 {[%clk 0:00:36.4]} 52. Kf3
{[%clk 0:01:06.1]} 52... Nc3 {[%clk 0:00:35.2]} 53. Rd7 {[%clk 0:01:06.4]} 53...
Nb1 {[%clk 0:00:30.9]} 54. Ke4 {[%clk 0:01:06.7]} 54... Nd2+ {[%clk 0:00:30.6]}
55. Kd5 {[%clk 0:01:08]} 55... Nf3 {[%clk 0:00:30.8]} 56. h4 {[%clk 0:01:06.9]}
56... Ne5 {[%clk 0:00:29.8]} 57. Re7 {[%clk 0:01:06.7]} 57... Ng6 {[%clk
0:00:28.3]} 58. Rb7 {[%clk 0:01:04.2]} 58... h5 {[%clk 0:00:24]} 59. Ke4 {[%clk
0:01:03]} 59... Ne5 {[%clk 0:00:19.6]} 60. Kf5 {[%clk 0:01:03.1]} 60... Nxc4
{[%clk 0:00:19.4]} 61. Kg6 {[%clk 0:01:04.6]} 61... Ne5+ {[%clk 0:00:17.4]} 62.
Kxh5 {[%clk 0:01:05.7]} 62... c4 {[%clk 0:00:18.4]} 63. Rc7 {[%clk 0:01:07.3]}
63... c3 {[%clk 0:00:19]} 64. g4 {[%clk 0:01:08.9]} 64... Nd3 {[%clk 0:00:15.4]}
65. Kg6 {[%clk 0:01:07.2]} 65... Kf8 {[%clk 0:00:14.4]} 66. Rf7+ {[%clk
0:00:37.5]} 66... Ke8 {[%clk 0:00:13.8]} 67. Rf1 {[%clk 0:00:39]} 67... c2
{[%clk 0:00:14.2]} 68. h5 {[%clk 0:00:40.6]} 68... c1=Q {[%clk 0:00:14.5]} 69.
Rxc1 {[%clk 0:00:42.1]} 69... Nxc1 {[%clk 0:00:15.7]} 70. g5 {[%clk 0:00:44]}
70... Kf8 {[%clk 0:00:15.7]} 71. Kh7 {[%clk 0:00:44.9]} 71... Nd3 {[%clk
0:00:14]} 72. h6 {[%clk 0:00:44.2]} 72... Nf4 {[%clk 0:00:12.9]} 73. g6 {[%clk
0:00:45.1]} 73... Nxg6 {[%clk 0:00:11.9]} 74. Kxg6 {[%clk 0:00:47]} 74... Kg8
{[%clk 0:00:13.1]} 75. h7+ {[%clk 0:00:48.6]} 75... Kh8 {[%clk 0:00:13.9]} 76.
Kf7 {[%clk 0:00:50.2]} 76... Kxh7 {[%clk 0:00:14.8]} 1/2-1/2

[Event "*** Titled Tuesday Blitz"]
[Site "Chess.com"]
[Date "2019.06.04"]
[Round "1"]
[White "Everyfishknows"]
[Black "colemman"]
[Result "0-1"]
[WhiteElo "2243"]
[BlackElo "2604"]
[TimeControl "180+2"]
[EndTime "13:11:50 PDT"]
[Termination "colemman won by resignation"]

1. Nf3 {[%clk 0:03:01.9]} 1... d5 {[%clk 0:03:00.5]} 2. c4 {[%clk 0:03:02.7]}
2... c6 {[%clk 0:03:00.8]} 3. Qb3 {[%clk 0:03:03.2]} 3... Nf6 {[%clk 0:03:00]}
4. g3 {[%clk 0:03:03.9]} 4... Nbd7 {[%clk 0:02:59.5]} 5. Bg2 {[%clk 0:03:02.1]}
5... Nc5 {[%clk 0:03:00.1]} 6. Qc2 {[%clk 0:03:02.9]} 6... e6 {[%clk 0:02:55.5]}
7. O-O {[%clk 0:03:02.1]} 7... Be7 {[%clk 0:02:56.3]} 8. d3 {[%clk 0:02:50.4]}
8... O-O {[%clk 0:02:53.2]} 9. b3 {[%clk 0:02:35.5]} 9... Re8 {[%clk 0:02:51.1]}
10. Bb2 {[%clk 0:02:35.6]} 10... b6 {[%clk 0:02:42.5]} 11. Nc3 {[%clk
0:02:29.5]} 11... Bb7 {[%clk 0:02:42.4]} 12. e4 {[%clk 0:02:27.2]} 12... dxe4
{[%clk 0:02:16.1]} 13. dxe4 {[%clk 0:02:21.9]} 13... Qc7 {[%clk 0:02:17]} 14.
Rad1 {[%clk 0:02:19.6]} 14... e5 {[%clk 0:02:13.8]} 15. Rfe1 {[%clk 0:02:05.9]}
15... a5 {[%clk 0:02:10]} 16. Nh4 {[%clk 0:01:27.6]} 16... Bf8 {[%clk
0:02:03.5]} 17. Nf5 {[%clk 0:01:23.9]} 17... Rad8 {[%clk 0:01:55.8]} 18. Rxd8
{[%clk 0:01:07.8]} 18... Rxd8 {[%clk 0:01:55.9]} 19. Rd1 {[%clk 0:01:09.1]}
19... Rxd1+ {[%clk 0:01:50.2]} 20. Qxd1 {[%clk 0:01:09.7]} 20... Ne6 {[%clk
0:01:50.2]} 21. Bc1 {[%clk 0:00:34.6]} 21... Bb4 {[%clk 0:01:47]} 22. Bb2 {[%clk
0:00:22]} 22... Qd7 {[%clk 0:01:38.2]} 23. Qxd7 {[%clk 0:00:22.1]} 23... Nxd7
{[%clk 0:01:39.2]} 24. Nd1 {[%clk 0:00:08.3]} 24... g6 {[%clk 0:01:39.2]} 25.
Nfe3 {[%clk 0:00:05.7]} 25... Nd4 {[%clk 0:01:39]} 26. Kf1 {[%clk 0:00:02.8]}
26... Bc5 {[%clk 0:01:33.4]} 27. Bh3 {[%clk 0:00:03.3]} 27... Nf8 {[%clk
0:01:32.2]} 28. Nc3 {[%clk 0:00:03.3]} 28... Nfe6 {[%clk 0:01:30.5]} 29. Bxe6
{[%clk 0:00:04.4]} 29... Nxe6 {[%clk 0:01:30.8]} 30. Ke2 {[%clk 0:00:04.2]}
30... Bd4 {[%clk 0:01:31.7]} 31. Ncd1 {[%clk 0:00:04.9]} 31... Kf8 {[%clk
0:01:31.2]} 32. Nc2 {[%clk 0:00:05.9]} 32... Bxb2 {[%clk 0:01:31.5]} 33. Nxb2
{[%clk 0:00:07.8]} 33... Ke7 {[%clk 0:01:32.6]} 34. Nd1 {[%clk 0:00:05.4]} 34...
Kd6 {[%clk 0:01:33.3]} 35. Kd3 {[%clk 0:00:06.5]} 35... f6 {[%clk 0:01:30.9]}
36. f3 {[%clk 0:00:07.8]} 36... b5 {[%clk 0:01:28.2]} 37. cxb5 {[%clk
0:00:08.4]} 37... cxb5 {[%clk 0:01:27.4]} 38. Nc3 {[%clk 0:00:08.4]} 38... Bc6
{[%clk 0:01:25.7]} 39. Ke3 {[%clk 0:00:04]} 39... f5 {[%clk 0:01:22]} 40. exf5
{[%clk 0:00:04.5]} 40... gxf5 {[%clk 0:01:22.3]} 41. a3 {[%clk 0:00:03.8]} 41...
Nc7 {[%clk 0:01:19.1]} 42. b4 {[%clk 0:00:04.8]} 42... a4 {[%clk 0:01:18.3]} 43.
Ne1 {[%clk 0:00:04.9]} 43... Ne6 {[%clk 0:01:15.7]} 44. Nd3 {[%clk 0:00:05.1]}
44... h6 {[%clk 0:01:16.4]} 45. h4 {[%clk 0:00:05.1]} 45... Bd7 {[%clk
0:01:12.7]} 46. f4 {[%clk 0:00:05.6]} 46... e4 {[%clk 0:01:11]} 47. Ne5 {[%clk
0:00:06.3]} 47... Be8 {[%clk 0:01:11.6]} 48. Ne2 {[%clk 0:00:07]} 48... Kd5
{[%clk 0:01:06.9]} 49. Nc3+ {[%clk 0:00:04.8]} 49... Kd6 {[%clk 0:01:08]} 50.
Ne2 {[%clk 0:00:06]} 50... Nc7 {[%clk 0:00:45.1]} 51. Nd4 {[%clk 0:00:04.3]}
51... Nd5+ {[%clk 0:00:45.9]} 52. Ke2 {[%clk 0:00:05.3]} 52... Ne7 {[%clk
0:00:46.8]} 53. Ke3 {[%clk 0:00:04.2]} 53... Kd5 {[%clk 0:00:46.5]} 54. Nc2
{[%clk 0:00:04.6]} 54... Bh5 {[%clk 0:00:42.1]} 55. Nd4 {[%clk 0:00:05.4]} 55...
Be8 {[%clk 0:00:41.5]} 56. Nc2 {[%clk 0:00:06.5]} 56... Nc8 {[%clk 0:00:40.5]}
57. Nd4 {[%clk 0:00:07.1]} 57... Nd6 {[%clk 0:00:42]} 58. Nc2 {[%clk 0:00:07.4]}
58... Nc4+ {[%clk 0:00:42.8]} 59. Nxc4 {[%clk 0:00:08.7]} 59... Kxc4 {[%clk
0:00:44.1]} 60. Nd4 {[%clk 0:00:10.1]} 60... Bd7 {[%clk 0:00:45.4]} 61. Nc2
{[%clk 0:00:05.1]} 61... Kb3 {[%clk 0:00:44.3]} 62. Kd2 {[%clk 0:00:06.2]} 62...
Kb2 {[%clk 0:00:39.1]} 63. Kd1 {[%clk 0:00:06.2]} 63... Kc3 {[%clk 0:00:39.3]}
64. Kc1 {[%clk 0:00:06.9]} 64... Kd3 {[%clk 0:00:40]} 65. Kd1 {[%clk 0:00:05.4]}
65... Be8 {[%clk 0:00:40.6]} 66. Ne1+ {[%clk 0:00:04.8]} 66... Kc3 {[%clk
0:00:36.5]} 67. Nc2 {[%clk 0:00:04.2]} 67... Bh5+ {[%clk 0:00:35.8]} 68. Kc1
{[%clk 0:00:05.2]} 68... Bg6 {[%clk 0:00:33.3]} 69. Ne3 {[%clk 0:00:06]} 69...
Kb3 {[%clk 0:00:30.3]} 70. Kd2 {[%clk 0:00:06.6]} 70... Kxa3 {[%clk 0:00:29.1]}
71. Kc3 {[%clk 0:00:08]} 71... Ka2 {[%clk 0:00:28.8]} 72. h5 {[%clk 0:00:09.1]}
72... Bh7 {[%clk 0:00:28]} 73. Kc2 {[%clk 0:00:06.2]} 73... Ka3 {[%clk 0:00:21]}
74. Kc3 {[%clk 0:00:07.4]} 74... Ka2 {[%clk 0:00:22.2]} 75. Kc2 {[%clk
0:00:08.7]} 75... Bg8 {[%clk 0:00:22.4]} 76. Nxf5 {[%clk 0:00:08.9]} 76... Bb3+
{[%clk 0:00:23.9]} 77. Kc3 {[%clk 0:00:10]} 77... Kb1 {[%clk 0:00:24.4]} 78. Nd4
{[%clk 0:00:11.1]} 78... Bc4 {[%clk 0:00:23.5]} 79. Nc2 {[%clk 0:00:07.5]} 79...
e3 {[%clk 0:00:21.9]} 80. Na3+ {[%clk 0:00:02.5]} 80... Kc1 {[%clk 0:00:20.1]}
81. Nc2 {[%clk 0:00:02.1]} 81... e2 {[%clk 0:00:20.2]} 82. Ne1 {[%clk
0:00:03.5]} 82... a3 {[%clk 0:00:19.7]} 83. f5 {[%clk 0:00:04.3]} 83... a2
{[%clk 0:00:20.8]} 84. Nc2 {[%clk 0:00:05.6]} 84... a1=Q+ {[%clk 0:00:20]} 85.
Nxa1 {[%clk 0:00:07.1]} 85... e1=Q+ {[%clk 0:00:21.5]} 0-1

[Event "*** Titled Tuesday Blitz"]
[Site "Chess.com"]
[Date "2019.06.04"]
[Round "1"]
[White "Chebure"]
[Black "Hanging_pointer"]
[Result "1-0"]
[WhiteElo "2820"]
[BlackElo "2433"]
[TimeControl "180+2"]
[EndTime "13:13:12 PDT"]
[Termination "Chebure won by resignation"]

1. e4 {[%clk 0:03:01.9]} 1... c5 {[%clk 0:02:58.3]} 2. d4 {[%clk 0:03:02.9]}
2... cxd4 {[%clk 0:02:59.2]} 3. c3 {[%clk 0:03:03.8]} 3... dxc3 {[%clk
0:03:00.5]} 4. Nxc3 {[%clk 0:03:04.8]} 4... Nc6 {[%clk 0:03:02.4]} 5. Nf3 {[%clk
0:03:05.9]} 5... a6 {[%clk 0:03:01.9]} 6. Bc4 {[%clk 0:03:06.3]} 6... d6 {[%clk
0:03:03.2]} 7. O-O {[%clk 0:02:57.3]} 7... Nf6 {[%clk 0:03:04.1]} 8. h3 {[%clk
0:02:57]} 8... e6 {[%clk 0:03:02.8]} 9. Qe2 {[%clk 0:02:56.7]} 9... Be7 {[%clk
0:03:01.2]} 10. Rd1 {[%clk 0:02:57.3]} 10... Qa5 {[%clk 0:02:58.9]} 11. a3
{[%clk 0:02:42.2]} 11... Ne5 {[%clk 0:02:59.3]} 12. Ba2 {[%clk 0:02:38.7]} 12...
b5 {[%clk 0:02:47.1]} 13. Bf4 {[%clk 0:02:34]} 13... Qc7 {[%clk 0:02:47.9]} 14.
Rac1 {[%clk 0:02:33.6]} 14... Qb8 {[%clk 0:02:49.3]} 15. Nd4 {[%clk 0:02:30.8]}
15... Bd7 {[%clk 0:02:39.9]} 16. Bh2 {[%clk 0:02:22.4]} 16... Qb6 {[%clk
0:02:30.9]} 17. Kh1 {[%clk 0:02:21]} 17... O-O {[%clk 0:02:26.2]} 18. f4 {[%clk
0:02:02.7]} 18... Nc6 {[%clk 0:02:26.6]} 19. Bg1 {[%clk 0:01:59]} 19... Nxd4
{[%clk 0:01:42.1]} 20. Bxd4 {[%clk 0:02:00.9]} 20... Qb7 {[%clk 0:01:43.5]} 21.
Bxf6 {[%clk 0:01:48.3]} 21... Bxf6 {[%clk 0:01:09]} 22. f5 {[%clk 0:01:17.6]}
22... Be5 {[%clk 0:01:02.5]} 23. fxe6 {[%clk 0:01:17]} 23... fxe6 {[%clk
0:01:04.4]} 24. Nd5 {[%clk 0:01:17.8]} 24... Rac8 {[%clk 0:00:58.1]} 25. Ne7+
{[%clk 0:01:17.9]} 25... Kh8 {[%clk 0:00:48.7]} 26. Nxc8 {[%clk 0:00:48.6]}
26... Rxc8 {[%clk 0:00:50.6]} 27. Qg4 {[%clk 0:00:45.6]} 27... Re8 {[%clk
0:00:41.8]} 28. Rc2 {[%clk 0:00:43.3]} 28... b4 {[%clk 0:00:23.2]} 29. axb4
{[%clk 0:00:41.1]} 29... Qxb4 {[%clk 0:00:25.1]} 30. Rc7 {[%clk 0:00:20.3]}
30... Qxb2 {[%clk 0:00:22.9]} 31. Bxe6 {[%clk 0:00:20.4]} 31... Bb5 {[%clk
0:00:20.3]} 32. Bc4 {[%clk 0:00:17.8]} 32... Ba4 {[%clk 0:00:14.1]} 33. Rf1
{[%clk 0:00:16.8]} 33... Qb8 {[%clk 0:00:09.5]} 34. Rcf7 {[%clk 0:00:16.6]}
34... h6 {[%clk 0:00:09.1]} 35. Bxa6 {[%clk 0:00:16.5]} 35... Qa8 {[%clk
0:00:09.2]} 36. Bc4 {[%clk 0:00:17.1]} 36... Bc6 {[%clk 0:00:09.4]} 37. Bd5
{[%clk 0:00:17.3]} 37... Bxd5 {[%clk 0:00:10.3]} 38. exd5 {[%clk 0:00:18.5]}
38... Qxd5 {[%clk 0:00:11.4]} 39. Qg6 {[%clk 0:00:11.8]} 39... Qa8 {[%clk
0:00:09.2]} 40. Rd7 {[%clk 0:00:11.3]} 40... Rd8 {[%clk 0:00:09]} 41. Re7 {[%clk
0:00:12.2]} 41... Rc8 {[%clk 0:00:07.7]} 42. Qe6 {[%clk 0:00:11.9]} 42... Rg8
{[%clk 0:00:07.3]} 43. Ref7 {[%clk 0:00:12]} 43... Re8 {[%clk 0:00:06.8]} 44.
Qg6 {[%clk 0:00:12.7]} 44... Rg8 {[%clk 0:00:07.4]} 45. Qb1 {[%clk 0:00:09.5]}
45... Qa3 {[%clk 0:00:07.7]} 46. Rf8 {[%clk 0:00:09.1]} 46... Qb2 {[%clk
0:00:04.5]} 47. Rxg8+ {[%clk 0:00:07.1]} 47... Kxg8 {[%clk 0:00:06.4]} 48. Qf5
{[%clk 0:00:06.6]} 48... Qb8 {[%clk 0:00:07]} 49. Qe6+ {[%clk 0:00:06.9]} 49...
Kh8 {[%clk 0:00:07.7]} 50. Qd5 {[%clk 0:00:08.5]} 50... Qd8 {[%clk 0:00:08.3]}
51. Qf3 {[%clk 0:00:09.2]} 51... Qe7 {[%clk 0:00:07.6]} 52. Qa8+ {[%clk
0:00:09.7]} 52... Kh7 {[%clk 0:00:08.6]} 53. Qe4+ {[%clk 0:00:11.1]} 53... Kh8
{[%clk 0:00:09.7]} 54. Rb1 {[%clk 0:00:12.5]} 54... Qf8 {[%clk 0:00:07.9]} 55.
Rc1 {[%clk 0:00:13.7]} 55... g5 {[%clk 0:00:03.7]} 56. Qg4 {[%clk 0:00:14.1]}
56... Kg7 {[%clk 0:00:03.8]} 57. Rc7+ {[%clk 0:00:14.7]} 57... Kg6 {[%clk
0:00:05.2]} 58. Qe4+ {[%clk 0:00:15.9]} 58... Qf5 {[%clk 0:00:05.5]} 59. Qe1
{[%clk 0:00:11.6]} 59... Qf4 {[%clk 0:00:05.8]} 60. Kg1 {[%clk 0:00:07.3]} 60...
Bd4+ {[%clk 0:00:05.1]} 61. Kh1 {[%clk 0:00:08.4]} 61... Be5 {[%clk 0:00:06.5]}
62. Qb1+ {[%clk 0:00:09.3]} 62... Kh5 {[%clk 0:00:04.5]} 63. Qd1+ {[%clk
0:00:08.1]} 63... Kh4 {[%clk 0:00:05.9]} 64. Qe1+ {[%clk 0:00:08.9]} 64... Qg3
{[%clk 0:00:06.6]} 65. Qxg3+ {[%clk 0:00:09.2]} 65... Bxg3 {[%clk 0:00:08.5]}
66. Kg1 {[%clk 0:00:10.3]} 66... Be5 {[%clk 0:00:08.5]} 67. Kf1 {[%clk
0:00:11.6]} 67... h5 {[%clk 0:00:08.3]} 68. Rh7 {[%clk 0:00:10.1]} 68... g4
{[%clk 0:00:08]} 69. hxg4 {[%clk 0:00:11.3]} 69... Kxg4 {[%clk 0:00:09.9]} 70.
Ra7 {[%clk 0:00:12]} 70... h4 {[%clk 0:00:10.9]} 71. Ra4+ {[%clk 0:00:13.1]}
71... Kg3 {[%clk 0:00:09.2]} 72. Ra3+ {[%clk 0:00:14.5]} 72... Kg4 {[%clk
0:00:10.5]} 73. Rh3 {[%clk 0:00:15.7]} 73... Bg3 {[%clk 0:00:11.2]} 74. Ke2
{[%clk 0:00:17.3]} 74... Kf4 {[%clk 0:00:11.5]} 75. Rh1 {[%clk 0:00:18.1]} 75...
Kg4 {[%clk 0:00:12.8]} 76. Ra1 {[%clk 0:00:19.2]} 76... Bf4 {[%clk 0:00:11.9]}
77. Ra4 {[%clk 0:00:20]} 77... Kg3 {[%clk 0:00:13.1]} 78. Kf1 {[%clk 0:00:19.9]}
78... Be5 {[%clk 0:00:13.1]} 79. Re4 {[%clk 0:00:21.4]} 79... Bf4 {[%clk
0:00:14.1]} 80. Rd4 {[%clk 0:00:18.7]} 80... Be5 {[%clk 0:00:15]} 81. Rd3+
{[%clk 0:00:20.1]} 81... Kg4 {[%clk 0:00:15.9]} 82. Kf2 {[%clk 0:00:21.5]} 82...
Bg3+ {[%clk 0:00:17]} 83. Ke2 {[%clk 0:00:23]} 83... Be5 {[%clk 0:00:18.9]} 84.
Re3 {[%clk 0:00:23.3]} 84... Bf4 {[%clk 0:00:19.5]} 85. Rf3 {[%clk 0:00:20.8]}
85... Bg3 {[%clk 0:00:19.3]} 86. Ke3 {[%clk 0:00:19.8]} 86... h3 {[%clk
0:00:18.7]} 87. gxh3+ {[%clk 0:00:18.6]} 87... Kxh3 {[%clk 0:00:20.6]} 88. Rf6
{[%clk 0:00:19.7]} 88... Be5 {[%clk 0:00:20.9]} 89. Rg6 {[%clk 0:00:20.5]} 89...
Kh4 {[%clk 0:00:21.4]} 90. Kf3 {[%clk 0:00:21.6]} 90... Kh5 {[%clk 0:00:22.4]}
91. Rg1 {[%clk 0:00:22.7]} 91... Kh6 {[%clk 0:00:23.3]} 92. Ke4 {[%clk
0:00:23.2]} 92... Kh7 {[%clk 0:00:23.8]} 93. Kf5 {[%clk 0:00:24.4]} 93... Kh6
{[%clk 0:00:22.8]} 94. Rg2 {[%clk 0:00:18.1]} 94... Kh7 {[%clk 0:00:23]} 95. Rg5
{[%clk 0:00:16.8]} 95... Kh6 {[%clk 0:00:22.8]} 96. Rg1 {[%clk 0:00:18.1]} 96...
Kh7 {[%clk 0:00:24.1]} 97. Rg6 {[%clk 0:00:19.5]} 97... Kh8 {[%clk 0:00:20.9]}
98. Ke6 {[%clk 0:00:20]} 98... Kh7 {[%clk 0:00:18.2]} 99. Kf7 {[%clk 0:00:21.3]}
99... Bf4 {[%clk 0:00:13.6]} 100. Rg4 {[%clk 0:00:21.9]} 100... Be3 {[%clk
0:00:12.6]} 101. Rh4+ {[%clk 0:00:22.5]} 101... Bh6 {[%clk 0:00:12.8]} 102. Rh5
{[%clk 0:00:24.4]} 1-0